Cogmind - Beta 12 *** ADVENTURER MODE // 2023.05.19 @ 14:37:17 Player: FrigidRock Result: Destroyed by H-66 Slayer with Gauss Rifle Performance ------------- Evolutions (5) 2500 Regions Visited (19) 3800 Robots Destroyed (160) 800 Value Destroyed (6589) 6589 Prototype IDs (25) 500 Alien Tech Used (0) 0 Bonus (3367) 3367 TOTAL SCORE: 17556 Bonus ------- High Alert Combat Kills 586 Follower Combat Kills 1407 Entered Garrisons 600 Used RIF Installer 500 Met Data Miner 300 Friendly Fire -26 Cogmind --------- Core Integrity 0/1000 Matter 300/300 Energy 99/100 System Corruption 14% Temperature Cool (0) Movement Core (50) Location -5/Garrison Parts ------- > --- POWER (1) -------- (None) > --- PROPULSION (6) --- (None) > --- UTILITY (8) ------ (None) > --- WEAPON (2) ------- (None) > --- INVENTORY (5) ---- Micro Fission Core Relay Coupler [Grunt] (36) Relay Coupler [Grunt] (30) Relay Coupler [Sentry] (24) Relay Coupler [Behemoth] (13) Peak State ------------ > --- POWER ------------ Neutrino Core > --- PROPULSION ------- Improved Medium Treads Armored Medium Treads Armored Medium Treads Armored Medium Treads Armored Medium Treads Armored Medium Treads > --- UTILITY ---------- Large Storage Unit Advanced Targeting Computer System Shield Advanced System Shield Relay Coupler [Grunt] Relay Coupler [Brawler] Relay Coupler [Sentry] Relay Coupler [Specialist] > --- WEAPON ----------- Enhanced Force Rifle Heavy Proton Cannon > --- INVENTORY -------- Light Fission Core Micro Fission Core Advanced Cooling System Improved Signal Interpreter Relay Coupler [Swarmer] Relay Coupler [Grunt] Relay Coupler [Grunt] Relay Coupler [Specialist] Relay Coupler [Behemoth] Remote Datajack [Rating: 87] Favorites ----------- Power Light Ion Engine Engine Light Ion Engine Power Core Enhanced Nuclear Core Propulsion Armored Treads Treads Armored Treads Leg Aluminum Leg Wheel Wheel Hover Unit Aerolev Unit Utility Advanced Targeting Computer Device Cryofiber Web Storage Large Storage Unit Processor Advanced Targeting Computer Hackware Hacking Suite Protection Hardened Light Armor Plating Weapon Pulse Rifle Energy Gun Pulse Rifle Energy Cannon EM Pulse Cannon Ballistic Gun High-powered Shotgun Ballistic Cannon Advanced Assault Cannon Launcher Rocket Launcher Special Weapon Remote Datajack Special Melee Weapon Improved Datajack Build | -11 -10 -10 -9 -9 -9 -8 -8 -8 -8 -7 -7 -7 -7 -6 -6 -5 -5 -5 -5 ------- Run | Jun Mat Min Mat Min Exi Min Mat Gar Mat Fac Low Low Dat Pro Fac Fac Gar Fac Gar Slots Evolved 10 | . . . 2 . . . 2 . . 2 . . . . 2 2 . . . Power . | . . . . . . . . . . . . . . . . . . . . Propulsion 4 | . . . . . . . 1 . . 1 . . . . . 2 . . . Utility 6 | . . . 2 . . . 1 . . 1 . . . . 2 . . . . Weapon . | . . . . . . . . . . . . . . . . . . . . Parts Attached 223 | 5 4 . 11 1 . 2 11 16 40 22 1 6 . 3 20 33 18 30 . Power 14 | 1 . . . . . . 3 . 2 . . . . 1 2 2 1 2 . Engine 7 | 1 . . . . . . 2 . 2 . . . . 1 . 1 . . . Core 7 | . . . . . . . 1 . . . . . . . 2 1 1 2 . Reactor . | . . . . . . . . . . . . . . . . . . . . Propulsion 42 | 1 2 . 2 . . . 2 1 9 7 1 2 . . 2 11 1 1 . Treads 14 | . 2 . 2 . . . 2 1 . . . . . . . 5 1 1 . Leg 12 | . . . . . . . . . 9 3 . . . . . . . . . Wheel 1 | 1 . . . . . . . . . . . . . . . . . . . Hover 15 | . . . . . . . . . . 4 1 2 . . 2 6 . . . Flight . | . . . . . . . . . . . . . . . . . . . . Utility 56 | 1 . . 4 1 . 2 5 2 8 4 . 1 . 2 6 7 7 6 . Device 6 | . . . 1 1 . 1 1 . . . . . . . . 1 . 1 . Storage 5 | 1 . . 1 . . . 1 . . . . . . . 1 1 . . . Processor 3 | . . . 1 . . . 1 1 . . . . . . . . . . . Hackware 34 | . . . . . . . 1 . 7 4 . . . 2 4 4 7 5 . Protection 8 | . . . 1 . . 1 1 1 1 . . 1 . . 1 1 . . . Artifact . | . . . . . . . . . . . . . . . . . . . . Weapon 111 | 2 2 . 5 . . . 1 13 21 11 . 3 . . 10 13 9 21 . Energy Gun 14 | 1 . . 2 . . . 1 2 2 . . . . . 2 . 1 3 . Energy Cannon 31 | . . . . . . . . 3 4 1 . 1 . . 6 7 3 6 . Ballistic Gun 20 | 1 2 . 3 . . . . 3 6 4 . 1 . . . . . . . Ballistic Cannon 7 | . . . . . . . . . . 1 . . . . . 2 2 2 . Launcher 3 | . . . . . . . . 3 . . . . . . . . . . . Special Weapon 33 | . . . . . . . . 1 7 5 . 1 . . 2 4 3 10 . Impact Weapon . | . . . . . . . . . . . . . . . . . . . . Slashing Weapon . | . . . . . . . . . . . . . . . . . . . . Piercing Weapon . | . . . . . . . . . . . . . . . . . . . . Special Melee Weapon 3 | . . . . . . . . 1 2 . . . . . . . . . . Unidentified Prototypes 9 | . . . . 1 . . 1 . 2 1 . . . . 2 . . 2 . Corrupted Parts 1 | . . . . . . . . . 1 . . . . . . . . . . System Corruption 2 | . . . . . . . . . 2 . . . . . . . . . . Parts Lost 31 | . . . . . . . . 2 4 4 . 2 . . 4 3 1 11 . Power 4 | . . . . . . . . . . . . . . . 2 . 1 1 . Propulsion 15 | . . . . . . . . 1 3 2 . 1 . . 2 1 . 5 . Utility 7 | . . . . . . . . 1 1 1 . 1 . . . 2 . 1 . Weapon 5 | . . . . . . . . . . 1 . . . . . . . 4 . Highest Loss Streak 10 | . . . . . . . . 1 2 2 . 2 . . 2 2 1 10 . To Critical Strikes 2 | . . . . . . . . . . . . . . . . . . 2 . Average Slot Usage (%) 91 | . 81 85 80 96 77 82 97 99 92 98 91 87 84 88 80 89 95 90 . Engine 6 | . 14 14 11 11 11 11 7 9 8 7 7 7 7 7 1 2 2 . . Core 1 | . . . . . . . 1 . . . . . . . 4 2 2 4 . Treads 18 | . 22 28 22 22 22 22 26 26 12 . . . . . . 13 33 28 . Leg 3 | . . . . . . . . . 11 24 . . . . . . . . . Hover 4 | . . . . . . . . . . 4 29 28 30 30 23 14 . . . Device 3 | . . . 3 11 . 2 9 9 . . . . . . . . 1 . . Storage 7 | . 14 14 11 11 11 11 9 9 9 7 7 7 7 7 6 5 5 4 . Processor 8 | . . . 7 11 11 11 9 13 9 7 7 7 7 7 6 5 5 4 . Hackware 16 | . . . . . . . 7 4 17 28 30 24 23 26 24 29 31 33 . Protection 3 | . . . 3 7 . 2 9 9 5 1 . 1 . . 2 1 . . . Energy Gun 6 | . 2 . 4 22 22 22 18 5 3 . . . . . 3 . 1 2 . Energy Cannon 1 | . . . . . . . . 2 3 . . 2 . . 1 4 3 2 . Ballistic Gun 3 | . 24 28 17 . . . . 7 6 2 . 2 . . . . . . . Special Weapon 1 | . . . . . . . . . 3 4 7 4 7 7 3 3 . 2 . Naked Turns 56 | . . . . . . . . . . . . . . . . . . 25 31 Heaviest Build 54 | 12 14 14 26 33 19 26 39 44 42 44 30 42 30 30 39 49 49 54 . Greatest Support 165 | 10 46 46 46 40 40 40 60 60 60 50 33 33 31 31 34 135 165 165 3 Greatest Overweight (x) 2 | 1 1 . . . . . . . 1 1 . 2 . . 1 1 . 1 . Average Overweight (x) . | . . . . . . . . . . . . . . . . . . . . Largest Inventory Capacity 15 | 8 8 8 10 10 10 10 15 15 15 15 15 15 15 15 15 15 15 15 5 Average Capacity 13 | 6 8 8 9 10 10 10 11 15 15 15 15 15 15 15 13 12 15 14 5 Most Carried 15 | . 5 5 8 8 8 10 10 15 15 15 15 15 13 14 15 15 15 15 5 Average Carried 11 | . 3 5 5 6 8 9 9 12 14 14 14 13 13 13 11 10 13 12 5 Final Capacity 15 | 8 8 8 10 10 10 10 15 15 15 15 15 15 15 15 10 15 15 5 5 Final Carried 15 | . 5 5 5 8 8 8 10 14 15 14 15 13 13 13 10 15 15 5 5 Class Distribution -------------------- 42% | Bothacker-Mutant 29% | Mutant 27% | Hacker-Mutant Dominant Class ---------------- Mutant | -10/Materials Mutant | -10/Mines Mutant | -9/Materials Mutant | -9/Mines Mutant | -9/Exiles Mutant | -8/Mines Hacker-Mutant | -8/Materials Hacker-Mutant | -8/Garrison Bothacker-Mutant | -8/Materials Bothacker-Mutant | -7/Factory Bothacker-Mutant | -7/Lower Caves Bothacker-Mutant | -7/Lower Caves Bothacker-Mutant | -7/Data Miner Hacker-Mutant | -6/Proximity Caves Hacker-Mutant | -6/Factory Bothacker-Mutant | -5/Factory Bothacker-Mutant | -5/Garrison Bothacker-Mutant | -5/Factory Mutant | -5/Garrison Resources | -11 -10 -10 -9 -9 -9 -8 -8 -8 -8 -7 -7 -7 -7 -6 -6 -5 -5 -5 -5 ----------- Run | Jun Mat Min Mat Min Exi Min Mat Gar Mat Fac Low Low Dat Pro Fac Fac Gar Fac Gar Matter Collected 3947 | 108 41 30 225 162 . 20 110 423 643 525 28 123 . 29 256 346 465 413 . Remotely . | . . . . . . . . . . . . . . . . . . . . Salvage Created 6777 | . 91 42 207 56 . 34 1226 911 1044 514 . 93 . . 379 680 464 1036 . Parts 343 | . 6 4 14 8 . 3 66 59 54 26 . 4 . . 8 30 21 40 . Haulers Intercepted 7 | . . . . . . . 2 . 1 1 . . . . 1 2 . . . Recyclers Shooed 7 | . . . . . . . . . . . . . . . . 3 . 4 . Parts Field Recycled . | . . . . . . . . . . . . . . . . . . . . Retrieved Matter . | . . . . . . . . . . . . . . . . . . . . Parts Self-Destructed 5 | . . . . . . . . . . . . 5 . . . . . . . Prevented . | . . . . . . . . . . . . . . . . . . . . Kills | -11 -10 -10 -9 -9 -9 -8 -8 -8 -8 -7 -7 -7 -7 -6 -6 -5 -5 -5 -5 ------- Run | Jun Mat Min Mat Min Exi Min Mat Gar Mat Fac Low Low Dat Pro Fac Fac Gar Fac Gar Combat Hostiles Destroyed 129 | . 2 3 4 4 . 4 24 26 18 11 . 2 . . 3 8 11 9 . Guns 88 | . 2 3 4 4 . 4 24 25 12 3 . 1 . . 1 . 4 1 . Cannons 36 | . . . . . . . . 1 4 8 . 1 . . 2 6 6 8 . AOE 3 | . . . . . . . . . 1 . . . . . . 1 1 . . Classes Destroyed 13 | . 1 1 2 . . . 5 2 1 . . . . . . . . 1 . Worker 3 | . . . . . . . 1 . 1 . . . . . . . . 1 . Tunneler 2 | . . . . . . . 2 . . . . . . . . . . . . Hauler 7 | . . . . . . . 2 . 1 1 . . . . 1 2 . . . Recycler 8 | . . . . . . . 1 . 1 1 . . . . 1 . . 4 . Operator 2 | . . . . . . . . . 2 . . . . . . . . . . Watcher 9 | . . . 1 . . . 3 1 . . . . . . . 3 . 1 . Swarmer 36 | . . 3 . 4 . 4 6 9 . 1 . . . . 2 . 5 2 . Saboteur 1 | . . . . . . . . . . . . . . . . . . 1 . Grunt 46 | . 2 . 1 . . . 7 10 13 6 . 2 . . . 1 4 . . Duelist 5 | . . . . . . . . 2 2 . . . . . . . . 1 . Sentry 14 | . . . 3 . . . 8 1 1 . . . . . 1 . . . . Hunter 12 | . . . . . . . 3 1 1 1 . . . . . 4 1 1 . Programmer 15 | . . . . . . . . 3 1 3 . . . . . 3 1 4 . Best Kill Streak 8 | . 2 3 1 4 . 3 8 5 6 4 . 2 . . 2 3 3 2 . Combat Bots Only 8 | . 2 3 1 4 . 3 8 5 5 4 . 2 . . 2 2 3 2 . Max Kills in Single Turn 2 | . 1 1 1 2 . 2 2 2 2 1 . 1 . . 1 1 1 1 . Gunslinging 1 | . . . . 1 . 1 1 . 1 . . . . . . . . . . Exploded 1 | . . . . . . . . . 1 . . . . . . 1 1 . . Melee . | . . . . . . . . . . . . . . . . . . . . Uniques/NPCs Destroyed . | . . . . . . . . . . . . . . . . . . . . Combat | -11 -10 -10 -9 -9 -9 -8 -8 -8 -8 -7 -7 -7 -7 -6 -6 -5 -5 -5 -5 -------- Run | Jun Mat Min Mat Min Exi Min Mat Gar Mat Fac Low Low Dat Pro Fac Fac Gar Fac Gar Damage Taken 8738 | . 69 60 167 18 . 37 925 681 1056 511 . 193 . 46 403 838 1181 2414 139 Core 1505 | . 8 . 54 . . 6 150 96 75 18 . 15 . . 79 218 66 581 139 Absorbed by Shields . | . . . . . . . . . . . . . . . . . . . . Core Remaining (%) 84 | 100 . 96 . . . 85 . . 41 . . . . 95 90 . . . . Volleys Fired 447 | . 5 5 13 4 . 6 75 50 67 38 . 8 . 3 22 45 47 59 . Largest 2 | . 2 2 2 2 . 2 2 2 2 2 . 2 . 1 2 2 2 2 . Hottest 171 | . 46 46 126 126 . 126 126 124 124 111 . 105 . 5 150 165 171 162 . Shots Fired 734 | . 10 10 26 8 . 12 144 91 108 63 . 15 . 3 26 56 69 93 . Gun 444 | . 10 10 26 8 . 12 144 69 76 20 . 7 . . 9 . 20 33 . Cannon 205 | . . . . . . . . 13 20 34 . 7 . . 9 46 37 39 . Launcher 9 | . . . . . . . . 9 . . . . . . . . . . . Special 76 | . . . . . . . . . 12 9 . 1 . 3 8 10 12 21 . Kinetic 221 | . 10 10 24 . . . . 40 56 49 . 7 . . . 12 10 3 . Thermal 327 | . . . 2 8 . 12 144 29 20 . . 7 . . 9 20 39 37 . Explosive 9 | . . . . . . . . 9 . . . . . . . . . . . Electromagnetic 105 | . . . . . . . . 13 20 5 . . . . 9 14 8 36 . Robot Hit Streak 32 | . 8 7 22 3 . 7 32 16 22 9 . 9 . 5 19 19 13 19 . Robot Miss Streak 3 | . 1 2 2 1 . 1 2 2 3 2 . 2 . . 1 1 2 2 . Penetration Max . | . . . . . . . . . . . . . . . . . . . . Secondary Targets 15 | . . 1 . 1 . 1 4 5 3 . . . . . . . . . . Max Gunslinging Chain 1 | . . 1 . 1 . 1 1 1 1 . . . . . . . . . . Shots Hit Robots 601 | . 9 7 22 5 . 9 114 65 99 52 . 12 . 3 23 48 53 80 . Core Hits 263 | . 5 3 10 4 . 5 53 46 42 25 . 7 . . 8 18 15 22 . Critical Kills 1 | . . . . . . . . . 1 . . . . . . . . . . Critical Parts Destroyed 11 | . . . 1 . . . . 1 1 . . . . . . . . 8 . Critical Strikes 42 | . . . 1 . . . 12 5 7 2 . . . . 2 . 1 12 . Burn 24 | . . . . . . . 12 4 5 . . . . . 2 . 1 . . Destroy 12 | . . . 1 . . . . 1 2 . . . . . . . . 8 . Blast 5 | . . . . . . . . . . 2 . . . . . . . 3 . Corrupt 1 | . . . . . . . . . . . . . . . . . . 1 . Melee Attacks 1 | . . . . . . . . . 1 . . . . . . . . . . Impact . | . . . . . . . . . . . . . . . . . . . . Slashing . | . . . . . . . . . . . . . . . . . . . . Piercing . | . . . . . . . . . . . . . . . . . . . . Sneak Attacks . | . . . . . . . . . . . . . . . . . . . . Combat Hostiles . | . . . . . . . . . . . . . . . . . . . . Follow-up Attacks . | . . . . . . . . . . . . . . . . . . . . Damage Inflicted 13168 | . 135 105 386 86 . 168 2101 1516 1952 1139 . 293 . . 420 1528 1488 1851 . Guns 7356 | . 135 105 386 86 . 154 2101 1342 1367 286 . 140 . . 140 . 417 697 . Cannons 5342 | . . . . . . . . 174 389 797 . 153 . . 280 1460 1013 1076 . Explosions 373 | . . . . . . . . . 191 56 . . . . . 68 58 . . Melee . | . . . . . . . . . . . . . . . . . . . . Ramming 19 | . . . . . . 14 . . 5 . . . . . . . . . . Kinetic 4332 | . 135 105 369 . . . . 848 977 969 . 140 . . . 297 249 243 . Thermal 6318 | . . . 17 86 . 154 2101 494 581 56 . 153 . . 140 744 1017 775 . Explosive . | . . . . . . . . . . . . . . . . . . . . Electromagnetic 2499 | . . . . . . . . 174 389 114 . . . . 280 487 222 833 . Impact . | . . . . . . . . . . . . . . . . . . . . Slashing . | . . . . . . . . . . . . . . . . . . . . Piercing . | . . . . . . . . . . . . . . . . . . . . Highest Corruption 14 | . . . . . . . . 2 5 2 2 2 2 2 . 1 2 14 14 Average Corruption 2 | . . . . . . . . 1 3 1 2 2 2 2 . 1 1 2 14 Corruption Purged . | . . . . . . . . . . . . . . . . . . . . Corruption Blocked . | . . . . . . . . . . . . . . . . . . . . Effects 86 | . . . . . . . . 7 24 8 3 2 . 3 . 7 10 21 1 Message Errors 16 | . . . . . . . . 1 7 1 . . . 1 . 3 1 2 . Matter Fused 22 | . . . . . . . . 2 7 2 . . . . . . 5 6 . Heat Flow Errors 9 | . . . . . . . . 1 2 2 . 1 . 2 . . 1 . . Energy Discharges 9 | . . . . . . . . 1 3 2 1 . . . . 1 . 1 . Parts Rejected 3 | . . . . . . . . . 1 . . 1 . . . 1 . . . Parts Fused 3 | . . . . . . . . 1 . . 1 . . . . . . 1 . Data Loss (minor) 7 | . . . . . . . . . 1 . 1 . . . . . . 4 1 Data Loss (major) 9 | . . . . . . . . . 3 . . . . . . 2 2 2 . Misfires 3 | . . . . . . . . . . . . . . . . . 1 2 . Alerts 3 | . . . . . . . . 1 . 1 . . . . . . . 1 . Misdirections 1 | . . . . . . . . . . . . . . . . . . 1 . Weapon Failures 1 | . . . . . . . . . . . . . . . . . . 1 . Overload Shots . | . . . . . . . . . . . . . . . . . . . . Overflow Damage 268 | . . . . . . . . . 21 4 . . . . 20 56 98 69 . Projectiles 264 | . . . . . . . . . 21 . . . . . 20 56 98 69 . Explosions 4 | . . . . . . . . . . 4 . . . . . . . . . Melee . | . . . . . . . . . . . . . . . . . . . . Knockbacks 17 | . . . . . . . . . . 9 . . . . . 6 2 . . Impact . | . . . . . . . . . . . . . . . . . . . . Kinetic 14 | . . . . . . . . . . 8 . . . . . 4 2 . . Secondary 3 | . . . . . . . . . . 1 . . . . . 2 . . . Self-Inflicted Damage 56 | . . . . . . . . . . . . . . . . . 56 . . Shots 1 | . . . . . . . . . . . . . . . . . 1 . . Rammed 2 | . . . . . . 2 . . . . . . . . . . . . . Targets Rammed 3 | . . . . . . 2 . . 1 . . . . . . . . . . Kicked 1 | . . . . . . . . . 1 . . . . . . . . . . Crushed . | . . . . . . . . . . . . . . . . . . . . Highest Temperature 407 | . 5 . 6 6 . 114 291 172 341 174 . 388 . 247 227 407 370 264 . Average Temperature 80 | . 2 . 3 4 . 36 55 59 89 62 . 166 . 114 65 82 102 76 . Received Heat Transfer 2367 | . 51 . 102 . . . 333 270 612 189 . 126 . . 30 66 345 171 72 Effects 9 | . . . . . . . . . . . . 3 . . 1 4 1 . . Energy Bleed 1 | . . . . . . . . . . . . . . . 1 . . . . Interference 7 | . . . . . . . . . . . . 3 . . . 4 . . . Short Circuit 1 | . . . . . . . . . . . . . . . . . 1 . . Siege Activations . | . . . . . . . . . . . . . . . . . . . . Robots Corrupted 4 | . . . . . . . . . 1 . . . . . . 2 . 1 . Combat Hostiles 2 | . . . . . . . . . 1 . . . . . . 1 . . . Parts Fried 10 | . . . . . . . . 1 1 . . . . . . 4 . 4 . Impact Corruptions . | . . . . . . . . . . . . . . . . . . . . Robots Melted . | . . . . . . . . . . . . . . . . . . . . Combat Hostiles . | . . . . . . . . . . . . . . . . . . . . Parts Melted 15 | . . . . . . . 10 2 1 1 . . . . . . . 1 . Heat Transferred 10817 | . . . 37 185 . 333 5143 1126 1273 150 . 300 . . 407 50 703 1110 . Parts Sabotaged . | . . . . . . . . . . . . . . . . . . . . Parts Stolen . | . . . . . . . . . . . . . . . . . . . . Parts Stripped . | . . . . . . . . . . . . . . . . . . . . Power Chain Reactions 4 | . . . . . . . . . 1 1 . . . . . 1 1 . . Missiles Intercepted . | . . . . . . . . . . . . . . . . . . . . Alert | -11 -10 -10 -9 -9 -9 -8 -8 -8 -8 -7 -7 -7 -7 -6 -6 -5 -5 -5 -5 ------- Run | Jun Mat Min Mat Min Exi Min Mat Gar Mat Fac Low Low Dat Pro Fac Fac Gar Fac Gar Peak Influence 1076 | . 80 96 226 91 . 90 395 1076 801 405 . . . . 157 258 593 351 72 Initial 451 | . . 26 31 . . . 29 136 451 258 . . . . . 41 96 269 72 Average 272 | . 27 78 87 31 . 12 209 636 612 217 . . . . 45 101 325 254 72 Maximum Alert Level 3 | . . . 1 . . . 1 3 3 2 . . . . . 1 2 1 . Low Security (%) 47 | 100 100 100 81 100 . 100 44 8 . 40 . . . . 100 96 31 18 100 Level 1 27 | . . . 18 . . . 55 14 . 47 . . . . . 3 26 81 . Level 2 17 | . . . . . . . . 28 86 11 . . . . . . 41 . . Level 3 7 | . . . . . . . . 48 13 . . . . . . . . . . Level 4 . | . . . . . . . . . . . . . . . . . . . . Level 5 . | . . . . . . . . . . . . . . . . . . . . High Security . | . . . . . . . . . . . . . . . . . . . . Max Security . | . . . . . . . . . . . . . . . . . . . . Squads Dispatched 44 | . 2 . 3 . . . 4 . 7 7 . 1 . . 4 5 . 11 . Investigation 15 | . 2 . 2 . . . 1 . 5 1 . . . . 1 2 . 1 . Extermination 5 | . . . . . . . . . . 1 . . . . . 1 . 3 . Reinforcement 14 | . . . 1 . . . 3 . 1 2 . . . . 2 2 . 3 . Assault 2 | . . . . . . . . . 1 . . 1 . . . . . . . Garrison 8 | . . . . . . . . . . 3 . . . . 1 . . 4 . Intercept . | . . . . . . . . . . . . . . . . . . . . Searches Triggered . | . . . . . . . . . . . . . . . . . . . . Data Miner Redirects 1 | . . . . . . . . . . . . . . . . 1 . . . Construction Impeded . | . . . . . . . . . . . . . . . . . . . . Haulers Reinforced 2 | . . . . . . . . . . . . . . . 1 . . 1 . Active Scanning Responses . | . . . . . . . . . . . . . . . . . . . . Cargo Convoy Interrupts 1 | . . . . . . . . . . . . . . . . . . 1 . Stealth | -11 -10 -10 -9 -9 -9 -8 -8 -8 -8 -7 -7 -7 -7 -6 -6 -5 -5 -5 -5 --------- Run | Jun Mat Min Mat Min Exi Min Mat Gar Mat Fac Low Low Dat Pro Fac Fac Gar Fac Gar Distress Signals 18 | . 1 . 1 . . 1 6 1 6 . . . . . . 2 . . . Communications Jammed . | . . . . . . . . . . . . . . . . . . . . Distress Signals . | . . . . . . . . . . . . . . . . . . . . Times Spotted 297 | . 3 3 8 4 . 4 35 31 51 24 . 13 . 3 20 26 29 38 5 Peak Tracking Total 12 | . 2 3 4 4 . 3 9 5 6 4 . 12 . 3 7 4 7 8 5 Tactical Retreats 8 | . . . . . . . . 2 3 . . 1 . . . 1 1 . . Traps | -11 -10 -10 -9 -9 -9 -8 -8 -8 -8 -7 -7 -7 -7 -6 -6 -5 -5 -5 -5 ------- Run | Jun Mat Min Mat Min Exi Min Mat Gar Mat Fac Low Low Dat Pro Fac Fac Gar Fac Gar Traps Triggered 11 | . 1 . . . . . 1 1 4 1 . . . . . 3 . . . Indirectly . | . . . . . . . . . . . . . . . . . . . . Trap Hack Attempts . | . . . . . . . . . . . . . . . . . . . . Triggered . | . . . . . . . . . . . . . . . . . . . . Disarmed . | . . . . . . . . . . . . . . . . . . . . Reprogrammed . | . . . . . . . . . . . . . . . . . . . . Reused . | . . . . . . . . . . . . . . . . . . . . Traps Extracted . | . . . . . . . . . . . . . . . . . . . . Installed . | . . . . . . . . . . . . . . . . . . . . Triggered . | . . . . . . . . . . . . . . . . . . . . Machines | -11 -10 -10 -9 -9 -9 -8 -8 -8 -8 -7 -7 -7 -7 -6 -6 -5 -5 -5 -5 ---------- Run | Jun Mat Min Mat Min Exi Min Mat Gar Mat Fac Low Low Dat Pro Fac Fac Gar Fac Gar Machines Disabled 14 | . . . . . . . 2 2 3 3 . . . . . . 3 1 . Max in Single Turn 2 | . . . . . . . 1 1 1 . . . . . . . 2 . . Garrison Relay 3 | . . . . . . . . 2 . . . . . . . . 1 . . Phase Generator 1 | . . . . . . . . . . . . . . . . . 1 . . Machines Repaired . | . . . . . . . . . . . . . . . . . . . . Machines Sabotaged . | . . . . . . . . . . . . . . . . . . . . Overloaded Fab Kills . | . . . . . . . . . . . . . . . . . . . . Hacking | -11 -10 -10 -9 -9 -9 -8 -8 -8 -8 -7 -7 -7 -7 -6 -6 -5 -5 -5 -5 --------- Run | Jun Mat Min Mat Min Exi Min Mat Gar Mat Fac Low Low Dat Pro Fac Fac Gar Fac Gar Machines Accessed 46 | . 1 . 5 1 . . 6 2 8 5 2 . 4 . 4 6 . 2 . Terminals 28 | . . . 4 . . . 5 2 6 4 . . . . 3 4 . . . Fabricators . | . . . . . . . . . . . . . . . . . . . . Repair Stations . | . . . . . . . . . . . . . . . . . . . . Recycling Units 3 | . 1 . 1 . . . . . 1 . . . . . . . . . . Scanalyzers . | . . . . . . . . . . . . . . . . . . . . Garrison Access 8 | . . . . . . . 1 . 1 1 . . . . 1 2 . 2 . Total Hacks 114 | . 2 . 10 1 . . 13 3 20 8 3 . 30 . 8 14 . 2 . Successful 73 | . 1 . 4 1 . . 4 1 7 5 3 . 30 . 7 8 . 2 . Failed 41 | . 1 . 6 . . . 9 2 13 3 . . . . 1 6 . . . Catastrophic 7 | . . . 1 . . . 4 . 1 1 . . . . . . . . . Database Lockouts . | . . . . . . . . . . . . . . . . . . . . Manual 33 | . 2 . 2 . . . 6 . 11 5 . . . . 2 4 . 1 . Terminals 62 | . . . 8 . . . 11 3 17 6 . . . . 7 10 . . . Fabricators . | . . . . . . . . . . . . . . . . . . . . Repair Stations . | . . . . . . . . . . . . . . . . . . . . Recycling Units 5 | . 2 . 2 . . . . . 1 . . . . . . . . . . Scanalyzers . | . . . . . . . . . . . . . . . . . . . . Garrison Access 13 | . . . . . . . 2 . 2 2 . . . . 1 4 . 2 . Terminal Hacks 59 | . . . 3 1 . . 3 1 4 3 3 . 30 . 6 5 . . . Record 14 | . . . . . . . . . . . 2 . 11 . 1 . . . . Part Schematic 12 | . . . . . . . . . . . . . 12 . . . . . . Robot Schematic 4 | . . . . . . . . . . . . . 4 . . . . . . Prototype ID Bank 6 | . . . 1 . . . . . . 1 . . 3 . . 1 . . . Open Door 2 | . . . . 1 . . . . . . 1 . . . . . . . . Level Access Points 2 | . . . . . . . . . . . . . . . 1 1 . . . Branch Access Points 4 | . . . . . . . 1 . 1 1 . . . . 1 . . . . Emergency Access Points 2 | . . . 1 . . . . 1 . . . . . . . . . . . Terminal Index 1 | . . . . . . . . . 1 . . . . . . . . . . Unreport Threat 3 | . . . . . . . . . 1 . . . . . 2 . . . . Locate Traps 4 | . . . . . . . . . . 1 . . . . 1 2 . . . Garrison Status 1 | . . . . . . . 1 . . . . . . . . . . . . Recall Investigation 1 | . . . . . . . . . . . . . . . . 1 . . . Registered Prototypes 1 | . . . . . . . . . 1 . . . . . . . . . . Zone Layout 2 | . . . 1 . . . 1 . . . . . . . . . . . . Fabricator Hacks . | . . . . . . . . . . . . . . . . . . . . Repair Station Hacks . | . . . . . . . . . . . . . . . . . . . . Recycling Unit Hacks . | . . . . . . . . . . . . . . . . . . . . Scanalyzer . | . . . . . . . . . . . . . . . . . . . . Garrison Access Hacks 3 | . . . . . . . 1 . . . . . . . . 1 . 1 . Unlock Access 3 | . . . . . . . 1 . . . . . . . . 1 . 1 . Unauthorized Hacks 11 | . 1 . 1 . . . . . 3 2 . . . . 1 2 . 1 . Terminals . | . . . . . . . . . . . . . . . . . . . . Fabricators . | . . . . . . . . . . . . . . . . . . . . Repair Stations . | . . . . . . . . . . . . . . . . . . . . Recycling Units 3 | . 1 . 1 . . . . . 1 . . . . . . . . . . Tunnel 3 | . 1 . 1 . . . . . 1 . . . . . . . . . . Scanalyzers . | . . . . . . . . . . . . . . . . . . . . Garrison Access 8 | . . . . . . . . . 2 2 . . . . 1 2 . 1 . Restock 3 | . . . . . . . . . 1 1 . . . . . 1 . . . Eject 5 | . . . . . . . . . 1 1 . . . . 1 1 . 1 . Data Cores Recovered 3 | . . . . . . . . . 2 1 . . . . . . . . . Used 1 | . . . . . . . . . . 1 . . . . . . . . . Hacking Detections 28 | . . . 4 . . . 5 1 6 3 . . . . 3 5 . 1 . Full Trace Events 6 | . . . 2 . . . . . 3 . . . . . . 1 . . . Feedback Events . | . . . . . . . . . . . . . . . . . . . . Feedback Blocked . | . . . . . . . . . . . . . . . . . . . . Robot Schematics Acquired 4 | . . . . . . . . . . . . . 4 . . . . . . Robots Built . | . . . . . . . . . . . . . . . . . . . . Authchips . | . . . . . . . . . . . . . . . . . . . . Time . | . . . . . . . . . . . . . . . . . . . . Total Robot Build Rating . | . . . . . . . . . . . . . . . . . . . . Part Schematics Acquired 12 | . . . . . . . . . . . . . 12 . . . . . . Parts Built . | . . . . . . . . . . . . . . . . . . . . Authchips . | . . . . . . . . . . . . . . . . . . . . Time . | . . . . . . . . . . . . . . . . . . . . Total Part Build Rating . | . . . . . . . . . . . . . . . . . . . . Parts Repaired . | . . . . . . . . . . . . . . . . . . . . Time . | . . . . . . . . . . . . . . . . . . . . Parts Recycled . | . . . . . . . . . . . . . . . . . . . . Recycled Matter . | . . . . . . . . . . . . . . . . . . . . Retrieved Matter . | . . . . . . . . . . . . . . . . . . . . Retrieved Components . | . . . . . . . . . . . . . . . . . . . . Parts Scanalyzed . | . . . . . . . . . . . . . . . . . . . . Part Schematics Acquired . | . . . . . . . . . . . . . . . . . . . . Parts Damaged . | . . . . . . . . . . . . . . . . . . . . Bothacking | -11 -10 -10 -9 -9 -9 -8 -8 -8 -8 -7 -7 -7 -7 -6 -6 -5 -5 -5 -5 ------------ Run | Jun Mat Min Mat Min Exi Min Mat Gar Mat Fac Low Low Dat Pro Fac Fac Gar Fac Gar Used RIF Installer 1 | . . . . . . . . 1 . . . . . . . . . . . Robots Hacked 58 | . . . . . . . . . 11 8 . 1 . 3 7 5 11 12 . Non-combat 6 | . . . . . . . . . . 4 . . . . 2 . . . . Combat 52 | . . . . . . . . . 11 4 . 1 . 3 5 5 11 12 . Robot Hacks Applied 65 | . . . . . . . . . 12 8 . 1 . 3 7 9 12 13 . parse_system 1 | . . . . . . . . . . . . . . . 1 . . . . find_chute 1 | . . . . . . . . . . 1 . . . . . . . . . purge_threat 1 | . . . . . . . . . . 1 . . . . . . . . . mark_security 2 | . . . . . . . . . . 1 . . . . 1 . . . . find_shortcuts 2 | . . . . . . . . . . . . . . . . 1 1 . . find_garrison 3 | . . . . . . . . . 1 . . . . . . 1 . 1 . scatter_targeting 3 | . . . . . . . . . . . . . . . . 2 1 . . overload_power 3 | . . . . . . . . . . . . . . . 1 1 1 . . disable_weapons 1 | . . . . . . . . . 1 . . . . . . . . . . reboot_system 3 | . . . . . . . . . 1 1 . 1 . . . . . . . go_dormant 1 | . . . . . . . . . 1 . . . . . . . . . . overwrite_iff 5 | . . . . . . . . . . 1 . . . . . . 3 1 . streamctrl_high 1 | . . . . . . . . . . . . . . . . . 1 . . formatsys_high 38 | . . . . . . . . . 8 3 . . . 3 4 4 5 11 . Relay Couplers Released 49 | . . . . . . . . 8 8 7 . . . . 4 11 4 7 . Ejected 19 | . . . . . . . . . 4 4 . . . . 4 4 . 3 . Machine Destruction 12 | . . . . . . . . 8 . . . . . . . . 4 . . Programmers 18 | . . . . . . . . . 4 3 . . . . . 7 . 4 . Attached 28 | . . . . . . . . . 6 3 . . . 1 4 3 7 4 . Fabnet Peak Effective % . | . . . . . . . . . . . . . . . . . . . . Robots Rewired 1 | . . . . . . . . . . . . . . . . . 1 . . Allies Hacked 1 | . . . . . . . . . . . . . . . . . . 1 . Hacks Repelled 1 | . . . . . . . . . . . . . . . . . . 1 . Allies | -11 -10 -10 -9 -9 -9 -8 -8 -8 -8 -7 -7 -7 -7 -6 -6 -5 -5 -5 -5 -------- Run | Jun Mat Min Mat Min Exi Min Mat Gar Mat Fac Low Low Dat Pro Fac Fac Gar Fac Gar Total Allies 54 | . . . . 1 . . . 2 8 7 . . . 4 4 4 12 12 . Largest Group 5 | . . . . 1 . . . 2 3 4 2 1 . 4 5 3 3 5 . Highest-Rated Group 263 | . . . . 31 . . . 62 41 125 50 31 . 132 212 125 124 263 . Highest-Rated Ally 96 | . . . . 31 . . . 31 26 32 31 31 . 96 96 49 85 68 . Total Orders 2 | . . . . 1 . . . . . . 1 . . . . . . . . ROAM 1 | . . . . . . . . . . . 1 . . . . . . . . EXPLORE 1 | . . . . 1 . . . . . . . . . . . . . . . Ally Attacks 371 | . . . . 2 . . . 28 78 41 3 6 . . 64 40 47 62 . Total Damage 7822 | . . . . . . . . 399 1263 768 21 87 . . 1399 924 1117 1844 . Kills 52 | . . . . . . . . 2 11 9 . 1 . . 6 6 8 9 . Allies Corrupted 4 | . . . . . . . . . . . . . . . . 1 1 2 . Allies Melted 1 | . . . . . . . . . 1 . . . . . . . . . . Intel | -11 -10 -10 -9 -9 -9 -8 -8 -8 -8 -7 -7 -7 -7 -6 -6 -5 -5 -5 -5 ------- Run | Jun Mat Min Mat Min Exi Min Mat Gar Mat Fac Low Low Dat Pro Fac Fac Gar Fac Gar Robot Analysis Total . | . . . . . . . . . . . . . . . . . . . . Derelict Logs Recovered 3 | . . . . 2 . . . . . . 1 . . . . . . . . Drone Launches 16 | . . . . 16 . . . . . . . . . . . . . . . Drone Recoveries . | . . . . . . . . . . . . . . . . . . . . Exploration | -11 -10 -10 -9 -9 -9 -8 -8 -8 -8 -7 -7 -7 -7 -6 -6 -5 -5 -5 -5 ------------- Run | Jun Mat Min Mat Min Exi Min Mat Gar Mat Fac Low Low Dat Pro Fac Fac Gar Fac Gar Turns Passed 11093 | 41 112 35 811 697 389 285 1370 1254 1140 1054 221 119 31 123 475 986 766 1153 31 Spaces Moved 7262 | 40 58 13 439 397 229 153 645 627 585 797 362 189 77 234 558 903 360 571 25 Core 79 | 3 . . . . . . . . . . . . . . . . . 51 25 Treads 3920 | . 38 13 439 397 229 153 645 627 276 . . . . . . 223 360 520 . Legs 898 | . . . . . . . . . 309 589 . . . . . . . . . Wheels 57 | 37 20 . . . . . . . . . . . . . . . . . . Hover 2308 | . . . . . . . . . . 208 362 189 77 234 558 680 . . . Flight . | . . . . . . . . . . . . . . . . . . . . Fastest Speed 33 | 50 95 160 160 170 170 170 170 170 120 40 40 40 40 40 40 33 168 50 50 Average Speed 123 | 83 137 160 162 170 170 170 170 170 151 105 40 44 40 40 63 78 168 158 50 Slowest Speed 250 | 95 160 160 170 170 170 170 170 170 193 190 40 166 40 40 105 170 170 250 50 Overloaded Moves . | . . . . . . . . . . . . . . . . . . . . Propulsion Burnouts . | . . . . . . . . . . . . . . . . . . . . Robots Hopped . | . . . . . . . . . . . . . . . . . . . . Cave-ins Triggered . | . . . . . . . . . . . . . . . . . . . . Exploration Rate (%) 40 | 4 10 12 42 99 68 31 63 66 69 27 57 39 69 43 18 34 42 18 5 Regions Visited 19 Branch Regions 8 Pre-discovered Areas 4 | . 1 . 1 . . . . . 1 . . . 1 . . . . . . Known Exits Taken 6 | . . . . . . . 1 . 1 1 . . . . 1 1 . 1 . Unknown Exits Taken 11 | 1 1 1 1 1 1 1 . . . . 1 1 1 1 . . . . . Scrap Searched 9 | . . . . 2 . 1 . . . . 1 1 . 4 . . . . . Spaces Dug 8 | . . . . . . . . 8 . . . . . . . . . . . Terrain Destroyed 147 | . . . . . . . . 74 3 2 . . . . . 13 55 . . Melee . | . . . . . . . . . . . . . . . . . . . . Projectile 11 | . . . . . . . . . . 2 . . . . . 6 3 . . AOE 136 | . . . . . . . . 74 3 . . . . . . 7 52 . . Terrain Rammed . | . . . . . . . . . . . . . . . . . . . . Walls Destroyed . | . . . . . . . . . . . . . . . . . . . . Machines Disabled . | . . . . . . . . . . . . . . . . . . . . Actions | -11 -10 -10 -9 -9 -9 -8 -8 -8 -8 -7 -7 -7 -7 -6 -6 -5 -5 -5 -5 --------- Run | Jun Mat Min Mat Min Exi Min Mat Gar Mat Fac Low Low Dat Pro Fac Fac Gar Fac Gar Total 8623 | 44 80 17 512 412 229 165 778 719 734 948 437 210 76 260 658 1116 455 730 43 Wait 496 | . 6 . 32 6 . 1 30 20 28 78 74 4 . 19 33 92 12 43 18 Move 7241 | 39 57 12 438 396 228 152 644 625 584 796 361 188 76 233 557 902 358 570 25 Hop . | . . . . . . . . . . . . . . . . . . . . Pick Up 77 | . 5 . 5 2 . 2 7 6 6 5 . . . 1 7 12 9 10 . Fast Attach 81 | 5 4 . 9 1 . . 3 1 12 7 1 1 . 2 5 18 4 8 . Attach 47 | . . . . . . 2 3 1 3 4 . 4 . . 12 4 3 11 . Detach 22 | . . . . 2 . . . . 1 1 1 3 . . 8 1 1 4 . Swap 96 | . . . 2 . . . 5 14 25 11 . 1 . 1 4 11 11 11 . Drop 98 | . 3 . 13 1 1 . 11 2 6 8 . 1 . 1 10 18 9 14 . Fire 447 | . 5 5 13 4 . 6 75 50 67 38 . 8 . 3 22 45 47 59 . Melee 1 | . . . . . . . . . 1 . . . . . . . . . . Ram . | . . . . . . . . . . . . . . . . . . . . Kick 1 | . . . . . . . . . 1 . . . . . . . . . . Crush 2 | . . . . . . 2 . . . . . . . . . . . . . Escape Stasis 13 | . . . . . . . . . . . . . . . . 13 . . . Rewire 1 | . . . . . . . . . . . . . . . . . 1 . . Trap . | . . . . . . . . . . . . . . . . . . . . Miscellaneous . | . . . . . . . . . . . . . . . . . . . . Route ------- -11/Junkyard -10/Materials -10/Mines -9/Materials (discovered 3 exits: *Mat x2 / *Min) -9/Mines (discovered 3 exits: *Mat x2 / [*Exi]) -9/Exiles -8/Mines -8/Materials (discovered 3 exits: *Fac x2 / Gar) -8/Garrison (discovered 3 exits: *Mat x3) -8/Materials -7/Factory (discovered 5 exits: *Fac x2 / Sto / *Low x2) -7/Lower Caves -7/Lower Caves (discovered 2 exits: *Fac / *Dat) -7/Data Miner -6/Proximity Caves -6/Factory (discovered 6 exits: *Fac x4 / Low x2) -5/Factory (discovered 5 exits: Fac x4 / Gar) -5/Garrison -5/Factory -5/Garrison History --------- Turn | Location | Event 6 | -11/Junkyard | Discovered new exit (range 15) 42 | -11/Junkyard | Entered Materials 141 | -10/Materials | Discovered new exit (range 7) 154 | -10/Materials | Entered Mines 169 | -10/Mines | Discovered new exit (range 13) 189 | -10/Mines | Entered Materials 189 | -9/Materials | Evolved 2 slots: Utility x2 312 | -9/Materials | Build established: Mutant 561 | -9/Materials | Discovered new exit (range 5) 775 | -9/Materials | Discovered new exit (range 16) 981 | -9/Materials | Discovered new exit (range 12) 1000 | -9/Materials | Entered Mines 1009 | -9/Mines | Received a Mining Laser from a helpful Derelict 1247 | -9/Mines | Learned Materials garrison access intel 1285 | -9/Mines | Discovered new exit (range 13) 1457 | -9/Mines | Discovered new exit (range 10) 1460 | -9/Mines | Found the Drone Emporium 1474 | -9/Mines | Found Prototype Device 1474 | -9/Mines | Identified Decoy Drone Bay 1688 | -9/Mines | Deemed a non-threat by the Exiles lab entrance 1690 | -9/Mines | Discovered new exit (range 5) 1697 | -9/Mines | Entered Exiles 1742 | -9/Exiles | Met 8R-AWN 1773 | -9/Exiles | Met EX-HEX 1837 | -9/Exiles | Met EX-DEC 1887 | -9/Exiles | Met EX-BIN 2067 | -9/Exiles | Discovered new exit (range 12) 2086 | -9/Exiles | Entered Mines 2351 | -8/Mines | Discovered new exit (range 11) 2371 | -8/Mines | Entered Materials 2371 | -8/Materials | Evolved 2 slots: Propulsion x1, Utility x1 2372 | -8/Materials | Identified exit to Factory 2373 | -8/Materials | Loaded intel: 1 garrison access location 2861 | -8/Materials | Destroyed 8 combat bots 2939 | -8/Materials | Build established: Hacker-Mutant 3080 | -8/Materials | Discovered exit to Factory (range 9) 3739 | -8/Materials | Identified exit to Garrison 3741 | -8/Materials | Entered Garrison 3802 | -8/Garrison | Triggered checkpoint 3917 | -8/Garrison | Rescued a captive Derelict 3918 | -8/Garrison | Rescued a captive Derelict 4012 | -8/Garrison | Triggered checkpoint 4124 | -8/Garrison | Triggered checkpoint 4196 | -8/Garrison | Discovered new exit (range 11) 4242 | -8/Garrison | Triggered checkpoint 4261 | -8/Garrison | Garrison Relay disabled 4685 | -8/Garrison | Discovered new exit (range 14) 4688 | -8/Garrison | Build established: Mutant 4696 | -8/Garrison | Triggered checkpoint 4796 | -8/Garrison | Discovered new exit (range 12) 4870 | -8/Garrison | Triggered checkpoint 4905 | -8/Garrison | Installed Relay Interface Framework 4995 | -8/Garrison | Entered Materials 4995 | -8/Materials | Accompanied by 1 ally 5212 | -8/Materials | Build established: Bothacker-Mutant 5395 | -8/Materials | First assault squad dispatched 5720 | -8/Materials | Core integrity fell below 50% 6099 | -8/Materials | Discovered exit to Factory (range 8) 6135 | -8/Materials | Entered Factory 6135 | -7/Factory | Evolved 2 slots: Propulsion x1, Utility x1 6363 | -7/Factory | Garrison activated, responded to threat 6522 | -7/Factory | Discovered new exit (range 4) 6693 | -7/Factory | Allied Derelicts emerged from ambush trap array 6785 | -7/Factory | Identified exit to Storage 6785 | -7/Factory | Identified exit to Lower Caves 7119 | -7/Factory | Discovered new exit (range 16) 7189 | -7/Factory | Entered Lower Caves 7189 | -7/Lower Caves | Accompanied by 2 allies 7249 | -7/Lower Caves | Learned Armory trap positions 7328 | -7/Lower Caves | Discovered new exit (range 16) 7332 | -7/Lower Caves | Learned Factory terminal intel 7410 | -7/Lower Caves | Entered another Lower Caves area 7410 | -7/Lower Caves | Accompanied by 1 ally 7411 | -7/Lower Caves | Encountered a Warlord checkpoint 7416 | -7/Lower Caves | Discovered new exit (range 5) 7491 | -7/Lower Caves | Attracted the attention of an 0b10 checkpoint 7513 | -7/Lower Caves | Attracted the attention of an 0b10 outpost 7524 | -7/Lower Caves | Discovered new exit (range 14) 7529 | -7/Lower Caves | Entered Data Miner 7529 | -7/Data Miner | Discovered new exit (range 6) 7537 | -7/Data Miner | Met Data Miner 7544 | -7/Data Miner | Learned location of Section 7 (-3) 7544 | -7/Data Miner | Acquired the access code to Warlord's prototype stash 7551 | -7/Data Miner | Received God Mode back door access code from Data Miner 7560 | -7/Data Miner | Entered Proximity Caves 7637 | -6/Proximity Caves | Escorted by Enhanced Grunt 7663 | -6/Proximity Caves | Discovered new exit (range 6) 7683 | -6/Proximity Caves | Entered Factory 7683 | -6/Factory | Accompanied by 4 allies 7683 | -6/Factory | Evolved 2 slots: Utility x2 7684 | -6/Factory | Loaded intel: 26 terminal locations 7698 | -6/Factory | Identified exit to Lower Caves 7728 | -6/Factory | Discovered new exit (range 8) 7915 | -6/Factory | Build established: Hacker-Mutant 7995 | -6/Factory | Identified exit to Factory 8089 | -6/Factory | Garrison activated, responded to threat 8158 | -6/Factory | Entered another Factory area 8158 | -5/Factory | Accompanied by 2 allies 8158 | -5/Factory | Evolved 2 slots: Propulsion x2 8211 | -5/Factory | Incoming investigation squad redirected 8518 | -5/Factory | Build established: Bothacker-Mutant 8904 | -5/Factory | Identified exit to Factory 9095 | -5/Factory | Identified exit to Garrison 9144 | -5/Factory | Entered Garrison 9153 | -5/Garrison | Spotted B-90 Cyclops 9156 | -5/Garrison | Spotted B-75 Beast 9242 | -5/Garrison | Triggered checkpoint 9245 | -5/Garrison | Spotted B-75 Beast 9324 | -5/Garrison | Rewired B-75 Beast 9366 | -5/Garrison | Triggered checkpoint 9366 | -5/Garrison | Triggered checkpoint 9494 | -5/Garrison | Triggered checkpoint 9589 | -5/Garrison | Garrison Relay disabled 9669 | -5/Garrison | Discovered new exit (range 8) 9705 | -5/Garrison | Phase Generator disabled 9735 | -5/Garrison | Found embedded Infiltrators 9910 | -5/Garrison | Entered Factory 9910 | -5/Factory | Accompanied by 2 allies 10572 | -5/Factory | Garrison activated, responded to threat 10882 | -5/Factory | Garrison activated, responded to threat 10965 | -5/Factory | Cargo convoy interrupted 10991 | -5/Factory | Core integrity fell below 50% 11018 | -5/Factory | System corruption reached 10% 11038 | -5/Factory | Released all parts (9) 11047 | -5/Factory | Core integrity fell below 20% 11061 | -5/Factory | Identified exit to Garrison 11063 | -5/Factory | Entered Garrison 11068 | -5/Garrison | Lost 10 parts (1p4n1u4w) 11094 | -5/Garrison | Destroyed by H-66 Slayer with Gauss Rifle Last Messages --------------- 11040_ Penetrated by Slug. 11041_ M-13 Machinist fits Backup Propulsion I on P-70 Sage. 11043_ M-13 Machinist repairs Antigrav System. 11046_ Acquired 2 matter. 11048_ Acquired 36 matter. 11049_ P-70 Sage resets R-10 Processor, system corruption cleaned. 11051_ Slug penetrates Wall. 11055_ Detecting nearby Garrison Access. 11061_ Connecting with Garrison Access... >>Unlock Access door unlocked. 11061_ EXIT=UNLOCKED: GARRISON 11061_ Connecting with Garrison Access... 11063_ System corrupted: Substantial component data lost. LOCATION=GARRISON GOAL=ESCAPE 11089_ ALERT: Dispatching investigation squad to Factory. 11090_ Critical hit (Burn: +37). 11091_ System corrupted: Component data lost. 11094_ Penetrated by Slug. Map ----- +----------------------------------------------------+ | | | ?????????????????????????????????????????????????? | | ?????????????????????????????????????????????????? | | ?????????????????????????????????????????????????? | | ?????????????????????????????????????????????????? | | ?????????????????????????????????????????????????? | | ?????????????????????????????????????????????????? | | ?????????????????????????????????????????????????? | | ?????????????????????????????????????????????????? | | ?????????????????????#######?????????????????????? | | ?????????????????????# #?????????????????????? | | ?????????????????????# #?????????????????????? | | ?????????????????????# #?????????????????????? | | ?????????????????????# ###?????????????????????? | | ?????????????????????# #???????????????????????? | | ?????????????????????# #???????????????????????? | | ?????????????????????# #???????????????????????? | | ?????????????????????# #???????????????????????? | | ?????????????????????# #???????????????????????? | | ?????????????????????# #???????????????????????? | | ?????????????????????# #???????????????????????? | | ?????????????????????# #???????????????????????? | | ?????????????????????# #???????????????????????? | | ?????????????????????# #???????????????????????? | | ?????????????????????# #######?????????????????? | | ?????????????????????# @ #?????????????????? | | ?????????????????????# h #?????????????????? | | ?????????????????????# #### #?????????????????? | | ?????????????????????# #???? #?????????????????? | | ?????????????????????# #???????????????????????? | | ?????????????????????# #???????????????????????? | | ?????????????????????# #???????????????????????? | | ?????????????????????# T???????????????????????? | | ?????????????????????# #???????????????????????? | | ?????????????????????# ????????????????????????? | | ?????????????????????# ????????????????????????? | | ?????????????????????# ????????????????????????? | | ?????????????????????# ????????????????????????? | | ?????????????????????# ????????????????????????? | | ?????????????????????# ????????????????????????? | | ?????????????????????????????????????????????????? | | ?????????????????????????????????????????????????? | | ?????????????????????????????????????????????????? | | ?????????????????????????????????????????????????? | | ?????????????????????????????????????????????????? | | ?????????????????????????????????????????????????? | | ?????????????????????????????????????????????????? | | ?????????????????????????????????????????????????? | | ?????????????????????????????????????????????????? | | ?????????????????????????????????????????????????? | +----------------------------------------------------+ Best States ------------- Heat Dissipation 71 Energy Generation 19 Energy Capacity 315 Matter Stores 300 Matter Capacity 300 Sight Range 16 Terrain Scan Density 10 Base Temperature (-) 100 Armor Coverage 225 Resistance: KI 20 Resistance: TH 20 Resistance: EX 20 Resistance: EM 20 Resistance: I 20 Resistance: S 20 Resistance: P 20 Evasion (%) 57 Targeting Accuracy 8 Target Analysis 5 Recoil Reduction 6 Offensive Hacking 31 Defensive Hacking 24 Relay Coupler Types 4 Relay Coupler Value 147 Item Schematics ----------------- Combat Drone Bay | -7/Data Miner | Free Lgt. Regenerative Plating | -7/Data Miner | Free Cld. Aerolev Unit | -7/Data Miner | Free Gravity Neutralizer | -7/Data Miner | Free Com. Ion Cannon | -7/Data Miner | Free Linear Gravjet | -7/Data Miner | Free Recoil Nullifier | -7/Data Miner | Free Imp. Remote Datajack | -7/Data Miner | Free Proton Cannon | -7/Data Miner | Free Disruptor Cannon | -7/Data Miner | Free Adv. Medium Treads | -7/Data Miner | Free Imp. Linear Gravjet | -7/Data Miner | Free Robot Schematics ------------------ L-41 Fighter | -7/Data Miner | Free G-47 Trooper | -7/Data Miner | Free S-27 Virus | -7/Data Miner | Free G-50 Soldier | -7/Data Miner | Free Fabricated ------------ Nothing Alien Tech Used ----------------- None Achievements -------------- Factory Defaults Pwned Release The Drones! Challenges ------------ None Game ------ Seed NeutronFlightMediator Manual? 0 Play Time 02:16:29 Cumulative 132.1 hours Start 2023.05.18 @ 20:17:47 End 2023.05.19 @ 14:37:17 Sessions 3 Manual Loads 0 Difficulty Adventurer Special Mode None Game No. 70 Rogue 25 Adventurer 45 Explorer 0 Win Type - Total 7 Types 5/0/0/2/0/0/0/0/0 Lore% 61 Gallery% 69 Achievement% 55 Wizard Run 0 Options --------- ASCII 0 Keyboard 0 Movement Numpad Keybinds 0 Fullscreen 1 Font 24/Smallcaps Map View 76x50 Tactical HUD 1 Map Filters NONE Filters NONE Steam 1 RUN: 31d2d1db-57f7-4c2b-9fc6-0ef14f953cd1